bitfinex-derivatives/quotes_SOLF0:USTF0_20250603
["timestamp","ask_amount","ask_price","bid_price","bid_amount"]
[1748957273799,16.07496899,161.29,161.27,0.04509193]
[1748957274899,32.46,161.28,161.27,0.04509193]
[1748957275103,42.33896899,161.28,161.27,0.04509193]
[1748957275297,48.53526899,161.28,161.27,0.04509193]
[1748957280608,123.22738887,161.3,161.27,0.04509193]
[1748957280810,0.04738887,161.3,161.29,6.1959]
[1748957281104,0.04738887,161.3,161.27,0.04509193]
[1748957281308,0.04738887,161.3,161.27,6.24159193]
[1748957282107,9.92635786,161.3,161.27,6.24159193]
[1748957283011,16.12215786,161.3,161.27,6.24159193]
[1748957284110,16.12215786,161.3,161.28,6.1963]
[1748957284307,9.92635786,161.3,161.28,6.1963]
[1748957284513,9.92635786,161.3,161.27,0.04509193]
[1748957284905,16.12205786,161.3,161.27,0.04509193]
[1748957285303,16.12205786,161.3,161.28,6.1962]
[1748957285910,0.04738887,161.3,161.28,6.1962]
[1748957286315,0.04738887,161.3,161.27,0.04509193]
[1748957286316,0.04738887,161.3,161.29,6.1959]
[1748957295517,0.04738887,161.3,161.27,0.04509193]
[1748957295518,42.33896899,161.35,161.27,5.82334662]
[1748957295819,42.33896899,161.35,161.28,9.87896899]
[1748957296121,32.46,161.35,161.29,5.77825469]
[1748957296616,0.04070788,161.34,161.3,0.04051479]
[1748957297719,0.04070788,161.34,161.33,6.1944]
[1748957331050,0.04070788,161.34,161.33,12.50507022]
[1748957332750,0.04070788,161.34,161.33,18.29342637]
[1748957332751,7.88e-06,161.34,161.33,18.29342637]
[1748957333052,7.88e-06,161.34,161.33,12.50507022]
[1748957333654,7.88e-06,161.34,161.33,18.29512062]
[1748957334854,7.88e-06,161.34,161.33,18.29587312]
[1748957337549,7.88e-06,161.34,161.33,11.9852029]
[1748957337750,7.88e-06,161.34,161.33,18.29587312]
[1748957339056,7.88e-06,161.34,161.33,18.30177731]
[1748957339357,7.88e-06,161.34,161.33,12.50507022]
[1748957343151,7.88e-06,161.34,161.33,6.1944]
[1748957343349,7.88e-06,161.34,161.33,11.99507325]
[1748957345157,7.88e-06,161.34,161.33,6.1944]
[1748957346053,7.88e-06,161.34,161.33,11.99498937]
[1748957347062,7.88e-06,161.34,161.33,6.1944]
[1748957347257,7.88e-06,161.34,161.33,11.99507172]
[1748957347457,7.88e-06,161.34,161.33,6.1944]
[1748957347763,7.88e-06,161.34,161.33,11.99507172]
[1748957350364,7.88e-06,161.34,161.33,6.1944]
[1748957351256,7.88e-06,161.34,161.33,11.99647378]
[1748957353865,7.88e-06,161.34,161.33,11.99684583]
[1748957355464,7.88e-06,161.34,161.33,12.50507022]
[1748957355662,7.88e-06,161.34,161.33,16.56637022]
[1748957355858,32.3,161.41,161.4,6.1917]
[1748957357063,38.61067022,161.41,161.4,6.1917]
[1748957366476,32.3,161.41,161.4,6.1917]
[1748957366978,6.31067022,161.43,161.42,6.1909]
[1748957370282,32.26,161.44,161.43,6.1906]
[1748957370477,38.57067022,161.44,161.43,6.1906]
[1748957377387,32.26,161.44,161.43,6.1906]
[1748957378982,6.31067022,161.45,161.44,6.1902]
[1748957381285,6.31067022,161.45,161.43,6.23074585]
[1748957381493,6.31067022,161.44,161.43,6.23074585]
[1748957381701,6.31067022,161.44,161.43,0.04034585]
[1748957381990,12.50087022,161.44,161.43,0.04034585]
[1748957385389,44.76087022,161.44,161.43,0.04034585]
[1748957386694,6.1917,161.41,161.36,5.75895368]
[1748957386891,6.31067022,161.38,161.35,5.75895368]
[1748957387290,6.31067022,161.38,161.37,6.1929]
[1748957388490,6.31067022,161.38,161.36,6.23783981]
[1748957389092,6.31067022,161.38,161.36,0.04473981]
[1748957389896,6.31067022,161.37,161.36,0.04473981]
[1748957392198,6.31067022,161.37,161.36,6.23793981]
[1748957393384,6.31067022,161.38,161.37,6.1929]
[1748957393596,6.35009547,161.39,161.36,0.04473981]
[1748957393785,6.35009547,161.39,161.38,6.1925]
[1748957395196,0.03942525,161.39,161.38,6.1925]
[1748957395589,0.03942525,161.39,161.37,6.1927]
[1748957396097,16.08711422,161.39,161.36,6.23783981]
[1748957397199,16.08711422,161.39,161.37,6.1928]
[1748957397391,9.89501422,161.39,161.37,6.1928]
[1748957397594,9.89501422,161.39,161.36,6.23763981]
[1748957397991,16.08731422,161.39,161.36,6.23763981]
[1748957398493,16.08731422,161.39,161.37,6.1928]
[1748957398698,16.08731422,161.39,161.36,0.04473981]
[1748957399293,9.89501422,161.39,161.36,0.04473981]
[1748957399896,16.08731422,161.39,161.37,6.1926]
[1748957400391,0.03942525,161.39,161.38,6.1925]
[1748957400595,9.85558897,161.45,161.37,5.77115585]
[1748957400795,6.19,161.45,161.43,6.1905]
[1748957400992,32.22,161.46,161.39,15.62658639]
[1748957401196,32.22,161.46,161.41,5.77099742]
[1748957401396,6.1906,161.43,161.4,6.1917]
[1748957401701,6.1906,161.43,161.4,0.03992753]
[1748957401702,9.87585651,161.43,161.4,0.03992753]
[1748957402497,16.06655651,161.43,161.4,6.23152753]
[1748957402694,0.02026754,161.43,161.4,0.03992753]
[1748957403897,0.02026754,161.43,161.42,6.1909]
[1748957404994,6.21086754,161.43,161.4,0.03992753]
[1748957405199,9.87585651,161.43,161.4,0.03992753]
[1748957405600,9.87585651,161.43,161.41,6.1912]
[1748957405797,0.02026754,161.43,161.4,0.03992753]
[1748957406398,0.02026754,161.43,161.42,6.1909]
[1748957406900,0.02026754,161.43,161.4,0.03992753]
[1748957407906,0.02026754,161.43,161.42,6.1909]
[1748957409910,9.87585651,161.43,161.4,0.03992753]
[1748957410303,9.85558897,161.41,161.4,0.03992753]
[1748957411204,9.85558897,161.41,161.4,6.23162753]
[1748957411409,9.85558897,161.41,161.4,0.03992753]
[1748957411909,16.04688897,161.41,161.4,0.03992753]
[1748957412697,131.73558897,161.41,161.35,5.77132766]
[1748957412907,9.85558897,161.37,161.33,5.77132766]
[1748957413211,9.85558897,161.35,161.33,6.1942]
[1748957413416,42.07558897,161.37,161.31,5.77132766]
[1748957413616,42.07558897,161.37,161.36,6.1932]
[1748957414116,32.22,161.37,161.36,6.1932]
[1748957414418,0.04431107,161.38,161.37,6.1929]
[1748957415304,0.04431107,161.38,161.36,0.04595532]
[1748957415920,0.04431107,161.38,161.37,6.1929]
[1748957417912,16.09778897,161.46,161.41,6.1911]
[1748957417913,32.22,161.43,161.41,6.1911]
[1748957418316,32.22,161.43,161.35,5.77124095]
[1748957418514,9.85558897,161.42,161.35,5.77124095]
[1748957418716,9.85558897,161.4,161.34,11.94754095]
[1748957418911,9.85558897,161.41,161.35,0.04126508]
[1748957419223,9.85558897,161.42,161.35,0.04126508]
[1748957419519,32.22,161.43,161.35,9.89685405]
[1748957419712,42.07558897,161.43,161.35,9.89685405]
[1748957420023,42.07558897,161.43,161.36,5.76699215]
[1748957420222,9.85558897,161.41,161.35,0.04126508]
[1748957420423,9.85558897,161.39,161.35,0.04126508]
[1748957421223,16.04778897,161.39,161.35,0.04126508]
[1748957421524,9.85558897,161.39,161.35,0.04126508]
[1748957421724,9.85558897,161.39,161.36,6.1928]
[1748957421725,16.04778897,161.39,161.36,6.1928]
[1748957422020,9.85558897,161.39,161.35,0.04126508]
[1748957422526,6.1918,161.4,161.35,0.04126508]
[1748957423221,6.1918,161.4,161.37,6.1927]
[1748957423424,16.04658897,161.42,161.35,0.04126508]
[1748957423721,9.85558897,161.42,161.35,5.80989732]
[1748957424128,16.04648897,161.42,161.35,5.80989732]
[1748957424423,16.04648897,161.42,161.39,6.1917]
[1748957424624,9.85558897,161.42,161.39,0.04127866]
[1748957425226,9.85558897,161.42,161.4,6.1916]
[1748957425528,16.04648897,161.42,161.39,0.04127866]
[1748957425829,9.85558897,161.42,161.39,0.04127866]
[1748957426131,6.1912,161.41,161.39,0.04127866]
[1748957426334,6.1912,161.41,161.39,6.23317866]
[1748957426524,16.04658897,161.42,161.39,6.23317866]
[1748957426926,6.1914,161.41,161.39,6.23317866]
[1748957427132,6.1914,161.41,161.39,0.04127866]
[1748957427335,9.85558897,161.42,161.39,0.04127866]
[1748957427632,16.04658897,161.42,161.39,6.23307866]
[1748957428034,9.85558897,161.42,161.39,0.04127866]
[1748957428336,32.22,161.43,161.39,0.04127866]
[1748957428734,32.22,161.43,161.42,6.1908]
[1748957429433,9.85558897,161.44,161.39,0.04127866]
[1748957429637,16.04538897,161.45,161.39,0.04127866]
[1748957429935,16.04538897,161.45,161.42,6.1906]
[1748957430330,32.18,161.46,161.39,9.89686763]
[1748957430638,32.18,161.46,161.41,9.85558897]
[1748957430934,38.3697,161.46,161.43,6.1904]
[1748957431135,38.3697,161.46,161.43,6.23113735]
[1748957431334,38.3697,161.46,161.43,0.04073735]
[1748957431936,6.1898,161.45,161.43,0.04073735]
[1748957432237,32.18,161.46,161.43,0.04073735]
[1748957432625,38.3695,161.46,161.43,6.23093735]
[1748957433238,32.18,161.46,161.44,6.1898]
[1748957433426,32.18,161.46,161.43,0.04073735]
[1748957433628,32.18,161.46,161.45,6.1897]
[1748957434527,42.01558897,161.49,161.45,6.1897]
[1748957434733,42.01558897,161.49,161.46,6.1892]
[1748957435043,48.20388897,161.49,161.46,6.1892]
[1748957435234,48.20388897,161.49,161.45,6.1895]
[1748957435235,42.01558897,161.49,161.45,6.1895]
[1748957435434,42.01558897,161.49,161.43,0.04073735]
[1748957435640,6.1888,161.48,161.43,0.04073735]
[1748957435829,42.01558897,161.49,161.43,0.04073735]
[1748957436231,48.20388897,161.49,161.43,0.04073735]
[1748957436439,48.20388897,161.49,161.46,6.1891]
[1748957436734,6.1886,161.48,161.46,6.1891]
[1748957437041,6.1886,161.48,161.43,0.04073735]
[1748957437042,42.01558897,161.49,161.44,6.1899]
[1748957437243,42.01558897,161.49,161.43,0.04073735]
[1748957437534,9.85558897,161.47,161.43,6.23093735]
[1748957437731,9.85558897,161.47,161.43,0.04073735]
[1748957438338,6.1894,161.46,161.43,0.04073735]
[1748957438638,9.85558897,161.47,161.43,0.04073735]
[1748957438837,16.04478897,161.47,161.44,6.1899]
[1748957440042,6.1895,161.46,161.43,6.23103735]
[1748957440434,6.1895,161.46,161.43,0.04073735]
[1748957440639,6.1901,161.45,161.43,0.04073735]
[1748957440941,32.16,161.44,161.39,5.7617259]
[1748957441142,9.85558897,161.41,161.36,5.7617259]
[1748957441443,32.16,161.44,161.36,5.7617259]
[1748957441444,9.85558897,161.42,161.36,5.7617259]
[1748957441748,42.01558897,161.44,161.37,5.7617259]
[1748957441933,0.04644814,161.42,161.39,0.04598032]
[1748957443040,0.04644814,161.42,161.41,6.1913]
[1748957443641,32.16,161.47,161.44,6.1899]
[1748957443943,32.16,161.47,161.41,9.85558897]
[1748957444349,32.16,161.47,161.44,6.1899]
[1748957444549,42.01558897,161.47,161.4,5.7617259]
[1748957444847,42.01558897,161.47,161.42,0.03980843]
[1748957445443,6.1894,161.46,161.43,6.1905]
[1748957445647,42.01558897,161.47,161.43,6.1905]
[1748957446245,48.20488897,161.47,161.43,6.1905]
[1748957446549,42.01558897,161.47,161.44,6.1899]
[1748957446939,32.16,161.47,161.44,6.1899]
[1748957447143,42.01558897,161.47,161.44,6.1899]
[1748957447747,42.01558897,161.47,161.43,6.1904]
[1748957448144,42.01558897,161.47,161.42,0.03980843]
[1748957448351,48.20478897,161.47,161.42,0.03980843]
[1748957448648,37.93369828,161.61,161.46,9.83753853]
[1748957448846,9.83641885,161.58,161.52,0.04387681]
[1748957449151,9.83641885,161.56,161.52,0.04387681]
[1748957449346,41.99641885,161.56,161.52,0.04387681]
[1748957449945,41.99641885,161.56,161.53,6.1867]
[1748957450740,41.99641885,161.56,161.52,6.23087681]
[1748957451343,32.16,161.56,161.52,0.04387681]
[1748957451954,32.16,161.56,161.52,6.23077681]
[1748957452254,32.16,161.56,161.52,0.04387681]
[1748957452954,32.16,161.56,161.52,9.88029566]
[1748957453746,32.16,161.56,161.55,6.186]
[1748957453952,32.16,161.56,161.52,9.88029566]
[1748957454248,32.16,161.56,161.52,0.04387681]
[1748957456154,32.16,161.56,161.54,6.1861]
[1748957457354,32.16,161.56,161.55,6.186]
[1748957458046,32.16,161.56,161.54,6.1862]
[1748957458852,9.83641885,161.55,161.52,0.04387681]
[1748957459354,9.83641885,161.55,161.52,6.23077681]
[1748957459557,9.83641885,161.55,161.52,0.04387681]
[1748957459751,32.16,161.56,161.52,0.04387681]
[1748957459958,6.1873,161.52,161.48,6.1884]
[1748957460148,32.32,161.51,161.45,9.83641885]
[1748957460552,32.32,161.51,161.47,9.83641885]
[1748957460958,32.36606947,161.51,161.47,9.8811368]
[1748957461158,32.36606947,161.51,161.5,6.1879]
[1748957461653,32.36606947,161.51,161.47,0.04471795]
[1748957461848,42.20248832,161.51,161.47,0.04471795]
[1748957462252,6.1881,161.5,161.47,0.04471795]
[1748957462651,6.188,161.5,161.47,0.04471795]
[1748957462859,42.20248832,161.51,161.47,0.04471795]
[1748957463056,9.83641885,161.49,161.47,0.04471795]
[1748957463247,6.1886,161.48,161.47,0.04471795]
[1748957463652,9.83641885,161.49,161.4,16.10831885]
[1748957463958,6.1896,161.46,161.38,9.83641885]
[1748957464260,32.32,161.45,161.43,6.1903]
[1748957464657,32.32,161.45,161.42,0.04433728]
[1748957464861,32.32,161.45,161.43,6.1906]
[1748957465166,32.32,161.45,161.42,0.04433728]
[1748957465349,42.15641885,161.45,161.42,0.04433728]
[1748957465550,32.32,161.45,161.44,6.1902]
[1748957465748,0.04222017,161.46,161.42,0.04433728]
[1748957465951,0.04222017,161.46,161.45,6.1898]
[1748957468463,0.04222017,161.46,161.44,6.1901]
[1748957468762,9.83641885,161.45,161.42,0.04433728]
[1748957469156,9.83641885,161.43,161.42,0.04433728]
[1748957469661,9.83641885,161.43,161.32,5.73160282]
[1748957469963,9.83641885,161.4,161.32,17.62422167]
[1748957470264,32.32,161.4,161.32,11.89261885]
[1748957470465,42.15641885,161.4,161.32,11.89261885]
[1748957470767,0.03993728,161.38,161.37,6.1926]
[1748957471471,0.03993728,161.38,161.34,0.04346389]
[1748957471472,9.87635613,161.38,161.34,0.04346389]
[1748957472171,9.83641885,161.36,161.34,0.04346389]
[1748957472371,42.15641885,161.36,161.34,0.04346389]
[1748957472762,9.83641885,161.35,161.26,6.3839]
[1748957472971,9.83641885,161.31,161.26,4.2481]
[1748957473260,42.17641885,161.31,161.24,62.52414085]
[1748957473661,42.17641885,161.31,161.29,6.1959]
[1748957473866,42.17641885,161.31,161.26,0.04092761]
[1748957474261,42.17641885,161.31,161.29,6.1958]
[1748957474663,42.17641885,161.31,161.26,0.04092761]
[1748957474664,42.17641885,161.31,161.3,6.1955]
[1748957475066,9.83641885,161.31,161.3,6.1955]
[1748957475362,0.0433073,161.32,161.31,6.1952]
[1748957475363,32.3833073,161.32,161.31,6.1952]
[1748957480075,32.3833073,161.32,161.3,0.04217114]
[1748957480372,16.07511111,161.31,161.22,34.4413]
[1748957480691,16.07511111,161.31,161.28,6.1961]
[1748957480981,16.07511111,161.31,161.22,34.4413]
[1748957481172,16.07511111,161.31,161.28,6.1961]
[1748957481375,16.11912381,161.31,161.28,0.04698643]
[1748957481682,0.0440127,161.31,161.28,0.04698643]
[1748957481981,0.0440127,161.31,161.3,6.1955]
[1748957482581,0.0440127,161.31,161.29,6.1958]
[1748957483772,0.0440127,161.31,161.28,0.04698643]
[1748957484681,0.0440127,161.31,161.29,6.1956]
[1748957484981,16.11912381,161.31,161.29,6.1956]
[1748957485181,6.1958,161.3,161.28,0.04698643]
[1748957485380,16.07511111,161.29,161.28,0.04698643]
[1748957485675,16.07511111,161.3,161.28,0.04698643]
[1748957486284,16.07511111,161.3,161.29,6.1959]
[1748957486474,0.0440127,161.31,161.29,6.1959]
[1748957486680,0.0440127,161.31,161.28,0.04698643]
[1748957486977,0.0440127,161.31,161.3,6.1955]
[1748957489883,0.0440127,161.31,161.28,0.04698643]
[1748957490484,0.0440127,161.31,161.3,6.1955]
[1748957491076,0.0440127,161.31,161.28,0.04698643]
[1748957491390,16.07511111,161.29,161.22,2.1013]
[1748957491587,16.07511111,161.24,161.17,4.1932]
[1748957491883,16.07511111,161.22,161.17,2.0497]
[1748957492083,22.27401111,161.22,161.15,2.129]
[1748957492384,0.0459383,161.2,161.17,0.04691967]
[1748957492591,0.0459383,161.2,161.19,6.1998]
[1748957495493,16.12104941,161.2,161.19,6.1998]
[1748957495683,48.98104941,161.2,161.19,6.1998]
[1748957496484,32.9059383,161.2,161.19,6.1998]
[1748957500796,0.0459383,161.2,161.19,6.1998]
[1748957503187,0.0459383,161.2,161.17,0.04691967]
[1748957503503,48.95511111,161.19,161.08,45.2876]
[1748957503795,16.07511111,161.16,161.14,6.2014]
[1748957503990,16.07511111,161.18,161.08,63.52381111]
[1748957504187,16.07511111,161.18,161.15,6.2011]
[1748957504594,16.11551374,161.18,161.15,6.24601549]
[1748957504792,22.31571374,161.18,161.15,6.24601549]
[1748957505204,16.07511111,161.16,161.15,0.04491549]
[1748957505702,123.20040263,161.18,161.15,0.04491549]
[1748957505903,139.27551374,161.18,161.15,0.04491549]
[1748957506299,139.27551374,161.18,161.15,6.24581549]
[1748957506500,145.47591374,161.18,161.15,6.24581549]
[1748957506705,145.47591374,161.18,161.15,0.04491549]
[1748957507203,6.2006,161.17,161.15,0.04491549]
[1748957507405,16.07511111,161.16,161.15,0.04491549]
[1748957508200,16.07511111,161.17,161.15,0.04491549]
[1748957509104,16.07511111,161.16,161.15,0.04491549]
[1748957510104,22.27601111,161.16,161.15,0.04491549]
[1748957510501,22.27601111,161.16,161.05,16.07511111]
[1748957510502,16.07511111,161.16,161.03,16.07511111]
[1748957510803,6.2025,161.12,161.03,22.42581111]
[1748957511001,48.95511111,161.11,161.03,6.3507]
[1748957511196,16.07511111,161.09,161.05,6.2049]
[1748957511400,16.07511111,161.09,161.05,6.25083274]
[1748957511401,49.00204977,161.09,161.05,6.25083274]
[1748957511797,16.07511111,161.07,161.05,0.04593274]
[1748957512309,22.27981111,161.07,161.0,2.0351]
[1748957512604,16.07511111,161.05,161.03,6.2056]
[1748957512907,32.88,161.04,161.03,6.2056]
[1748957515495,0.04133283,161.05,161.04,6.2055]
[1748957515699,32.94,161.09,161.03,2.0716]
[1748957516104,6.2044,161.07,161.0,2.0351]
[1748957516308,16.07511111,161.06,161.0,2.0351]
[1748957516606,32.98029337,161.05,161.02,6.2061]
[1748957517199,16.07511111,161.04,161.01,0.04437668]
[1748957517404,16.07511111,161.02,161.01,0.04437668]
[1748957518307,16.07511111,161.02,160.94,32.94]
[1748957518608,39.1668,161.01,160.93,2.1088]
[1748957518808,32.96,161.01,160.93,2.1088]
[1748957519107,39.1667,161.01,160.93,2.1088]
[1748957519307,39.1667,161.01,160.98,6.2077]
[1748957519308,0.04174551,160.99,160.98,6.2077]
[1748957520308,0.04174551,160.99,160.95,0.04561821]
[1748957520512,16.11685662,160.99,160.95,0.04561821]
[1748957520809,22.32455662,160.99,160.95,6.25431821]
[1748957521012,16.11685662,160.99,160.95,0.04561821]
[1748957521312,16.07511111,160.97,160.95,0.04561821]
[1748957521610,32.96,160.96,160.95,0.04561821]
[1748957522311,32.96,160.96,160.87,4.118]
[1748957522505,156.28,160.96,160.87,4.118]
[1748957522704,16.07511111,160.93,160.87,4.118]
[1748957522907,32.96,160.92,160.87,4.118]
[1748957523310,0.04518406,160.91,160.88,0.04389225]
[1748957523707,0.04518406,160.91,160.9,6.2109]
[1748957524406,0.04518406,160.91,160.88,0.04389225]
[1748957524608,0.04518406,160.91,160.78,39.1232]
[1748957524813,22.28741111,160.87,160.83,6.2133]
[1748957525009,16.07511111,160.85,160.78,6.1432]
[1748957525208,6.2138,160.83,160.72,32.98]
[1748957525407,16.07511111,160.81,160.73,2.0291]
[1748957525605,0.04118894,160.79,160.75,0.04356206]
[1748957525802,0.04118894,160.79,160.76,6.2162]
[1748957526014,0.04118894,160.79,160.75,0.04356206]
[1748957527610,0.04118894,160.79,160.75,6.25976206]
[1748957527809,16.11630005,160.79,160.75,0.04356206]
[1748957528310,16.07511111,160.77,160.75,0.04356206]
[1748957528511,32.98,160.76,160.75,0.04356206]
[1748957528816,55.27131111,160.76,160.75,0.04356206]
[1748957529014,32.98,160.76,160.75,0.04356206]
[1748957530116,49.05511111,160.76,160.68,2.0121]
[1748957530412,16.07511111,160.69,160.63,4.123]
[1748957530607,49.07511111,160.69,160.63,4.123]
[1748957530803,33.0,160.69,160.63,4.123]
[1748957531009,0.04091745,160.68,160.64,0.04424833]
[1748957532022,16.11602856,160.68,160.64,0.04424833]
[1748957532322,16.11602856,160.68,160.59,1.9657]
[1748957532323,16.07511111,160.66,160.59,1.9657]
[1748957532515,16.07511111,160.64,160.59,1.9657]
[1748957532713,34.4,160.63,160.53,4.1422]
[1748957533015,34.4,160.62,160.54,2.0381]
[1748957533323,0.04456922,160.6,160.56,0.02712539]
[1748957534016,0.04456922,160.6,160.59,6.2228]
[1748957534212,0.04456922,160.6,160.56,0.02712539]
[1748957534415,0.04456922,160.6,160.57,6.2235]
[1748957534614,0.04456922,160.6,160.56,0.02712539]
[1748957535116,16.07511111,160.57,160.46,16.07511111]
[1748957535316,34.42,160.56,160.49,2.1197]
[1748957535619,50.49511111,160.55,160.49,2.1197]
[1748957535820,35.88,160.54,160.49,2.1197]
[1748957536117,35.88,160.54,160.53,6.225]
[1748957536614,35.88,160.54,160.49,2.1197]
[1748957536811,35.88,160.54,160.47,2.0517]
[1748957537112,0.04482694,160.55,160.54,6.2248]
[1748957537311,2.0273,160.65,160.52,16.07511111]
[1748957537513,16.07511111,160.63,160.52,16.07511111]
[1748957537710,16.07511111,160.63,160.53,4.24]
[1748957538014,16.07511111,160.62,160.53,4.24]
[1748957538221,35.9,160.64,160.53,4.24]
[1748957538420,0.04494518,160.6,160.57,0.04195926]
[1748957538609,16.07511111,160.59,160.57,0.04195926]
[1748957538813,16.07511111,160.59,160.47,2.0517]
[1748957538814,16.07511111,160.59,160.48,4.0996]
[1748957539013,16.07511111,160.56,160.48,4.0996]
[1748957539221,35.9,160.55,160.53,6.2248]
[1748957539424,35.9,160.54,160.53,6.2248]
[1748957539725,35.9,160.57,160.56,6.2239]
[1748957539915,35.9,160.57,160.48,28.76405633]
[1748957540117,0.04246001,160.54,160.48,28.76405633]
[1748957540413,35.9,160.57,160.48,28.76405633]
[1748957540614,35.9,160.6,160.51,24.66445633]
[1748957540826,154.08445633,160.65,160.6,6.2223]
[1748957541017,35.9,160.64,160.6,6.2223]
[1748957541519,35.94054424,160.64,160.6,0.04525662]
[1748957541909,24.66445633,160.63,160.6,0.04525662]
[1748957542111,24.66445633,160.63,160.51,60.56445633]
[1748957542312,35.9,160.64,160.51,60.56445633]
[1748957542513,190.04445633,160.64,160.51,60.56445633]
[1748957542909,60.56445633,160.64,160.58,6.2231]
[1748957543110,60.56445633,160.64,160.51,60.56445633]
[1748957543322,0.04661416,160.59,160.51,60.56445633]
[1748957544019,0.04661416,160.59,160.58,6.2232]
[1748957544611,42.50468361,161.06,160.54,24.66445633]
[1748957544816,35.92,160.66,160.57,24.66445633]
[1748957545018,35.92,160.66,160.58,2.1437]
[1748957545220,35.92,160.66,160.62,6.2213]
[1748957545620,35.92,160.66,160.58,4.2966]
[1748957545816,35.92,160.66,160.62,0.04477337]
[1748957545817,35.963346,160.66,160.62,0.04477337]
[1748957546317,24.65359525,160.63,160.44,12.4567]
[1748957546528,24.66604383,160.58,160.45,4.2966]
[1748957546819,35.92,160.57,160.56,6.224]
[1748957547116,536.86,160.67,160.52,35.92]
[1748957547320,0.04456966,160.61,160.57,24.66604383]
[1748957547526,0.04456966,160.61,160.58,1.9795]
[1748957547924,35.92,160.66,160.58,2.02119972]
[1748957548425,35.92,160.66,160.63,6.2211]
[1748957548827,35.96630547,160.66,160.63,0.04129606]
[1748957549520,35.96630547,160.66,160.64,6.2206]
[1748957549719,35.96630547,160.66,160.63,0.04129606]
[1748957550325,0.04630547,160.66,160.63,0.04129606]
[1748957550520,0.04630547,160.66,160.64,6.2209]
[1748957550726,0.04630547,160.66,160.63,0.04129606]
[1748957551127,0.04630547,160.66,160.64,6.2207]
[1748957551328,0.04630547,160.66,160.63,0.04129606]
[1748957552227,24.7123493,160.66,160.63,0.04129606]
[1748957553026,0.04630547,160.66,160.63,0.04129606]
[1748957553238,6.2209,160.64,160.63,0.04129606]
[1748957553534,42.1409,160.64,160.63,0.04129606]
[1748957553733,35.92,160.64,160.63,0.04129606]
[1748957556038,42.1409,160.64,160.63,0.04129606]
[1748957556246,60.55938421,160.64,160.58,1.9795]
[1748957556447,24.63938421,160.61,160.56,2.0881]
[1748957556744,35.92,160.6,160.56,2.0881]
[1748957557146,35.96004539,160.6,160.52,3.9795]
[1748957557340,60.5994296,160.6,160.52,5.9541]
[1748957557644,190.3794296,160.6,160.53,6.2249]
[1748957557946,24.63938421,160.57,160.52,5.9541]
[1748957558249,35.96129606,160.56,160.5,6.226]
[1748957558450,0.04158142,160.55,160.45,35.92]
[1748957558659,0.04595926,160.52,160.45,35.92]
[1748957558950,0.04595926,160.52,160.51,6.2259]
[1748957559849,35.92,160.56,160.5,16.26966445]
[1748957560050,119.90388463,160.72,160.52,16.22916163]
[1748957560051,16.22916163,160.63,160.52,16.22916163]
[1748957560346,16.22916163,160.63,160.54,16.22916163]
[1748957560347,35.92,160.62,160.54,16.22916163]
[1748957560851,0.03972071,160.6,160.56,0.04518421]
[1748957561840,0.03972071,160.6,160.59,6.2228]
[1748957564351,35.95972071,160.6,160.56,0.04518421]
[1748957565450,0.03972071,160.6,160.59,6.2228]
[1748957565951,0.03972071,160.6,160.58,6.2231]
[1748957566255,0.03972071,160.6,160.56,0.04518421]
[1748957566448,36.88,160.59,160.56,0.04518421]
[1748957566649,61.51931628,160.59,160.56,0.04518421]
[1748957566847,61.51931628,160.59,160.5,6.2263]
[1748957567155,61.51931628,160.59,160.4,5.73080769]
[1748957567156,24.63931628,160.52,160.4,5.73080769]
[1748957567348,2.1573,160.61,160.4,4.1921]
[1748957567349,24.63931628,160.49,160.4,4.1921]
[1748957567652,61.51931628,160.48,160.4,4.1921]
[1748957567853,0.03985305,160.46,160.4,4.1921]
[1748957568054,6.26795305,160.46,160.41,6.2297]
[1748957568359,24.63931628,160.45,160.37,2.0686]
[1748957568550,0.04322651,160.43,160.39,6.2303]
[1748957568752,0.04322651,160.43,160.35,4.1921]
[1748957568947,0.04322651,160.43,160.4,6.2301]
[1748957569151,0.04322651,160.43,160.35,4.1921]
[1748957571157,0.04322651,160.43,160.41,6.2298]
[1748957571354,0.04322651,160.43,160.35,4.1921]
[1748957572457,24.68254279,160.43,160.33,2.0726]
[1748957572658,0.04368488,160.4,160.33,2.0726]
[1748957572860,36.94368488,160.4,160.39,6.2306]
[1748957573361,0.04368488,160.4,160.39,6.2306]
[1748957573662,36.9,160.45,160.44,6.2286]
[1748957574458,36.9,160.49,160.41,24.63931628]
[1748957574663,0.04506399,160.47,160.43,0.04454078]